[Event "Titled Tuesday Blitz February 07 Early 2023"]
[White "Shuvalova, Polina"]
[Black "Maximov, Dmitry"]
[WhiteFideId "24171760"]
[BlackFideId "14105659"]
[WhiteElo "2484"]
[BlackElo "2497"]
[Result "1-0"]
[Round "10"]
[TimeControl "180+2"]
[Date "2023.02.07"]
[WhiteClock "0:00:19"]
[BlackClock "0:00:11"]

1. e4 {[%clk 0:03:00]}  c5 {[%clk 0:02:59]} 2. Nf3 {[%clk 0:03:00]}  d6 {[%clk 0:03:00]} 3. Bb5+ {[%clk 0:02:59]}  Nd7 {[%clk 0:02:59]} 4. O-O {[%clk 0:02:53]}  a6 {[%clk 0:02:59]} 5. Bxd7+ {[%clk 0:02:53]}  Bxd7 {[%clk 0:02:59]} 6. c3 {[%clk 0:02:53]}  Nf6 {[%clk 0:02:58]} 7. Re1 {[%clk 0:02:52]}  e6 {[%clk 0:02:57]} 8. d4 {[%clk 0:02:52]}  cxd4 {[%clk 0:02:57]} 9. cxd4 {[%clk 0:02:53]}  d5 {[%clk 0:02:58]} 10. exd5 {[%clk 0:02:49]}  Nxd5 {[%clk 0:02:58]} 11. Nc3 {[%clk 0:02:45]}  Bc6 {[%clk 0:02:58]} 12. Ne5 {[%clk 0:02:44]}  Be7 {[%clk 0:02:41]} 13. Qg4 {[%clk 0:02:26]}  O-O {[%clk 0:01:56]} 14. Bh6 {[%clk 0:02:23]}  Bf6 {[%clk 0:01:57]} 15. Ne4 {[%clk 0:02:23]}  Kh8 {[%clk 0:01:47]} 16. Nxf6 {[%clk 0:02:19]}  Qxf6 {[%clk 0:01:47]} 17. Bg5 {[%clk 0:02:19]}  Qf5 {[%clk 0:01:48]} 18. Qxf5 {[%clk 0:02:18]}  exf5 {[%clk 0:01:48]} 19. Nxc6 {[%clk 0:02:01]}  bxc6 {[%clk 0:01:48]} 20. Bd2 {[%clk 0:01:58]}  Rfb8 {[%clk 0:01:35]} 21. b3 {[%clk 0:01:56]}  a5 {[%clk 0:01:35]} 22. Rec1 {[%clk 0:01:47]}  Ra6 {[%clk 0:01:34]} 23. Rc4 {[%clk 0:01:45]}  h6 {[%clk 0:01:23]} 24. h4 {[%clk 0:01:41]}  Kh7 {[%clk 0:01:22]} 25. Rac1 {[%clk 0:01:22]}  Rbb6 {[%clk 0:01:22]} 26. Ra4 {[%clk 0:01:16]}  Rb5 {[%clk 0:01:18]} 27. Rc5 {[%clk 0:01:15]}  Nb4 {[%clk 0:00:33]} 28. Kf1 {[%clk 0:00:44]}  Rxc5 {[%clk 0:00:24]} 29. dxc5 {[%clk 0:00:42]}  Nd3 {[%clk 0:00:25]} 30. Rxa5 {[%clk 0:00:39]}  Rxa5 {[%clk 0:00:25]} 31. Bxa5 {[%clk 0:00:39]}  Nxc5 {[%clk 0:00:25]} 32. Ke2 {[%clk 0:00:37]}  Kg6 {[%clk 0:00:24]} 33. Bb6 {[%clk 0:00:33]}  Na6 {[%clk 0:00:23]} 34. a3 {[%clk 0:00:32]}  f4 {[%clk 0:00:23]} 35. Kd3 {[%clk 0:00:30]}  Kf5 {[%clk 0:00:24]} 36. f3 {[%clk 0:00:29]}  g5 {[%clk 0:00:24]} 37. hxg5 {[%clk 0:00:28]}  hxg5 {[%clk 0:00:25]} 38. Kc4 {[%clk 0:00:27]}  Ke5 {[%clk 0:00:23]} 39. Bd8 {[%clk 0:00:25]}  f6 {[%clk 0:00:22]} 40. b4 {[%clk 0:00:24]}  Ke6 {[%clk 0:00:22]} 41. a4 {[%clk 0:00:24]}  Nb8 {[%clk 0:00:19]} 42. a5 {[%clk 0:00:20]}  Na6 {[%clk 0:00:11]} 43. b5 {[%clk 0:00:19]}  cxb5+ {[%clk 0:00:11]} 44. Kxb5 {[%clk 0:00:20]}  Nb8 {[%clk 0:00:12]} 45. Bc7 {[%clk 0:00:19]}  Nd7 {[%clk 0:00:11]} 46. a6 {[%clk 0:00:19]} 1-0


[Site "https://www.chess.com"]

[Event "Titled Tuesday Blitz February 07 Early 2023"]
[White "Assaubayeva, Bibisara"]
[Black "tuschessCM1"]
[WhiteFideId "13708694"]
[WhiteElo "2464"]
[BlackElo "2638"]
[Result "0-1"]
[Round "10"]
[TimeControl "180+2"]
[Date "2023.02.07"]
[WhiteClock "0:00:03"]
[BlackClock "0:00:13"]

1. e4 {[%clk 0:03:00]}  c6 {[%clk 0:02:59]} 2. Nc3 {[%clk 0:02:59]}  d5 {[%clk 0:02:59]} 3. Nf3 {[%clk 0:02:59]}  dxe4 {[%clk 0:02:59]} 4. Nxe4 {[%clk 0:02:59]}  Nf6 {[%clk 0:03:00]} 5. Nxf6+ {[%clk 0:02:56]}  exf6 {[%clk 0:03:01]} 6. d4 {[%clk 0:02:56]}  Bd6 {[%clk 0:03:01]} 7. Bd3 {[%clk 0:02:56]}  O-O {[%clk 0:03:01]} 8. c3 {[%clk 0:02:56]}  Bg4 {[%clk 0:03:00]} 9. Be3 {[%clk 0:02:54]}  Nd7 {[%clk 0:03:00]} 10. h3 {[%clk 0:02:53]}  Bh5 {[%clk 0:03:00]} 11. Qc2 {[%clk 0:02:50]}  Bg6 {[%clk 0:02:57]} 12. O-O-O {[%clk 0:02:47]}  Re8 {[%clk 0:02:56]} 13. Kb1 {[%clk 0:02:47]}  b5 {[%clk 0:02:56]} 14. h4 {[%clk 0:02:42]}  Nb6 {[%clk 0:02:55]} 15. h5 {[%clk 0:02:40]}  Bxd3 {[%clk 0:02:56]} 16. Qxd3 {[%clk 0:02:41]}  Qe7 {[%clk 0:02:54]} 17. Rh4 {[%clk 0:02:33]}  Qe6 {[%clk 0:02:46]} 18. Re1 {[%clk 0:01:57]}  Nc4 {[%clk 0:02:38]} 19. Bc1 {[%clk 0:01:51]}  Qd7 {[%clk 0:02:29]} 20. Rhe4 {[%clk 0:01:48]}  Nb6 {[%clk 0:02:19]} 21. Nh4 {[%clk 0:01:38]}  Bf8 {[%clk 0:02:06]} 22. g4 {[%clk 0:01:35]}  Re6 {[%clk 0:01:36]} 23. Rxe6 {[%clk 0:01:16]}  fxe6 {[%clk 0:01:36]} 24. h6 {[%clk 0:01:14]}  g6 {[%clk 0:01:32]} 25. Nxg6 {[%clk 0:01:03]}  hxg6 {[%clk 0:01:26]} 26. Qxg6+ {[%clk 0:01:03]}  Kh8 {[%clk 0:01:26]} 27. Qxf6+ {[%clk 0:01:04]}  Kg8 {[%clk 0:01:27]} 28. Rxe6 {[%clk 0:01:00]}  Nd5 {[%clk 0:01:17]} 29. Qg5+ {[%clk 0:00:40]}  Kh8 {[%clk 0:01:15]} 30. Qe5+ {[%clk 0:00:40]}  Kg8 {[%clk 0:01:12]} 31. g5 {[%clk 0:00:40]}  Nc7 {[%clk 0:00:54]} 32. g6 {[%clk 0:00:12]}  Bg7 {[%clk 0:00:38]} 33. Re7 {[%clk 0:00:05]}  Bxe5 {[%clk 0:00:36]} 34. Rxd7 {[%clk 0:00:06]}  Bh2 {[%clk 0:00:37]} 35. f4 {[%clk 0:00:05]}  Nd5 {[%clk 0:00:32]} 36. h7+ {[%clk 0:00:05]}  Kh8 {[%clk 0:00:32]} 37. Rf7 {[%clk 0:00:06]}  Re8 {[%clk 0:00:25]} 38. f5 {[%clk 0:00:06]}  Bf4 {[%clk 0:00:25]} 39. Bxf4 {[%clk 0:00:05]}  Nxf4 {[%clk 0:00:26]} 40. Kc2 {[%clk 0:00:05]}  Nd5 {[%clk 0:00:24]} 41. Rxa7 {[%clk 0:00:05]}  Ne3+ {[%clk 0:00:24]} 42. Kd3 {[%clk 0:00:05]}  Nxf5 {[%clk 0:00:25]} 43. Rc7 {[%clk 0:00:04]}  Ne7 {[%clk 0:00:21]} 44. b3 {[%clk 0:00:02]}  Nxg6 {[%clk 0:00:21]} 45. Rxc6 {[%clk 0:00:03]}  Nf4+ {[%clk 0:00:22]} 46. Kd2 {[%clk 0:00:03]}  Re2+ {[%clk 0:00:22]} 47. Kd1 {[%clk 0:00:03]}  Rxa2 {[%clk 0:00:23]} 48. Rc5 {[%clk 0:00:03]}  Ne2 {[%clk 0:00:19]} 49. d5 {[%clk 0:00:04]}  Kxh7 {[%clk 0:00:17]} 50. d6 {[%clk 0:00:04]}  Nf4 {[%clk 0:00:17]} 51. d7 {[%clk 0:00:05]}  Ra8 {[%clk 0:00:17]} 52. Rc8 {[%clk 0:00:04]}  Ra1+ {[%clk 0:00:17]} 53. Kd2 {[%clk 0:00:04]}  Ra2+ {[%clk 0:00:14]} 54. Ke3 {[%clk 0:00:03]}  Ne6 {[%clk 0:00:14]} 55. Re8 {[%clk 0:00:04]}  Ra6 {[%clk 0:00:12]} 56. d8=Q {[%clk 0:00:02]}  Nxd8 {[%clk 0:00:12]} 57. Rxd8 {[%clk 0:00:03]}  Ra3 {[%clk 0:00:13]} 0-1


[Site "https://www.chess.com"]

[Event "Titled Tuesday Blitz February 07 Early 2023"]
[White "Janaszak, Dawid"]
[Black "Bilych, Olexiy"]
[WhiteFideId "1119206"]
[BlackFideId "14156504"]
[WhiteElo "2316"]
[BlackElo "2441"]
[Result "0-1"]
[Round "10"]
[TimeControl "180+2"]
[Date "2023.02.07"]
[WhiteClock "0:00:01"]
[BlackClock "0:00:14"]

1. e4 {[%clk 0:02:54]}  c5 {[%clk 0:02:59]} 2. Nc3 {[%clk 0:02:52]}  Nc6 {[%clk 0:02:59]} 3. Bb5 {[%clk 0:02:52]}  Nd4 {[%clk 0:02:58]} 4. Nf3 {[%clk 0:02:52]}  g6 {[%clk 0:02:58]} 5. O-O {[%clk 0:02:47]}  Bg7 {[%clk 0:02:57]} 6. e5 {[%clk 0:02:46]}  Nh6 {[%clk 0:02:51]} 7. Re1 {[%clk 0:02:42]}  O-O {[%clk 0:02:29]} 8. d3 {[%clk 0:02:39]}  d6 {[%clk 0:02:05]} 9. exd6 {[%clk 0:02:32]}  Qxd6 {[%clk 0:02:01]} 10. Ne4 {[%clk 0:02:26]}  Qc7 {[%clk 0:01:59]} 11. Nxd4 {[%clk 0:02:22]}  cxd4 {[%clk 0:01:59]} 12. h3 {[%clk 0:02:02]}  Nf5 {[%clk 0:01:56]} 13. Bc4 {[%clk 0:01:55]}  b6 {[%clk 0:01:44]} 14. Qf3 {[%clk 0:01:36]}  Bb7 {[%clk 0:01:43]} 15. Bf4 {[%clk 0:01:36]}  e5 {[%clk 0:01:43]} 16. Bg5 {[%clk 0:01:32]}  h6 {[%clk 0:00:43]} 17. Bd2 {[%clk 0:01:18]}  Kh8 {[%clk 0:00:36]} 18. Bb3 {[%clk 0:01:08]}  Nd6 {[%clk 0:00:33]} 19. Qg3 {[%clk 0:00:49]}  Nxe4 {[%clk 0:00:33]} 20. dxe4 {[%clk 0:00:50]}  a5 {[%clk 0:00:32]} 21. a4 {[%clk 0:00:49]}  Kh7 {[%clk 0:00:27]} 22. Rac1 {[%clk 0:00:42]}  Rad8 {[%clk 0:00:26]} 23. f3 {[%clk 0:00:27]}  Ba6 {[%clk 0:00:25]} 24. Kh1 {[%clk 0:00:26]}  f5 {[%clk 0:00:21]} 25. exf5 {[%clk 0:00:25]}  gxf5 {[%clk 0:00:22]} 26. Qh4 {[%clk 0:00:18]}  Rd6 {[%clk 0:00:18]} 27. c4 {[%clk 0:00:15]}  Rg6 {[%clk 0:00:18]} 28. Bc2 {[%clk 0:00:12]}  Bb7 {[%clk 0:00:15]} 29. Bb1 {[%clk 0:00:11]}  Qc6 {[%clk 0:00:14]} 30. b4 {[%clk 0:00:09]}  Rxg2 {[%clk 0:00:14]} 31. Be4 {[%clk 0:00:07]}  fxe4 {[%clk 0:00:13]} 32. Kxg2 {[%clk 0:00:08]}  exf3+ {[%clk 0:00:14]} 33. Kf2 {[%clk 0:00:06]}  e4 {[%clk 0:00:14]} 34. b5 {[%clk 0:00:04]}  e3+ {[%clk 0:00:14]} 35. Kf1 {[%clk 0:00:04]}  Qg6 {[%clk 0:00:13]} 36. Qg4 {[%clk 0:00:01]}  Qxg4 {[%clk 0:00:14]} 0-1


[Site "https://www.chess.com"]

[Event "Titled Tuesday Blitz February 07 Early 2023"]
[White "Costachi, Mihnea"]
[Black "Poliakova, Varvara"]
[WhiteFideId "1217518"]
[BlackFideId "13518313"]
[WhiteElo "2476"]
[BlackElo "2010"]
[Result "1-0"]
[Round "10"]
[TimeControl "180+2"]
[Date "2023.02.07"]
[WhiteClock "0:01:42"]
[BlackClock "0:02:21"]

1. Nc3 {[%clk 0:03:00]}  e5 {[%clk 0:02:58]} 2. e4 {[%clk 0:03:00]}  Nf6 {[%clk 0:02:57]} 3. Bc4 {[%clk 0:02:59]}  Bc5 {[%clk 0:02:57]} 4. d3 {[%clk 0:02:59]}  c6 {[%clk 0:02:53]} 5. Nf3 {[%clk 0:02:53]}  d5 {[%clk 0:02:53]} 6. exd5 {[%clk 0:02:54]}  cxd5 {[%clk 0:02:50]} 7. Bb5+ {[%clk 0:02:54]}  Bd7 {[%clk 0:02:50]} 8. Nxe5 {[%clk 0:02:42]}  Bxb5 {[%clk 0:02:49]} 9. Nxb5 {[%clk 0:02:43]}  Qb6 {[%clk 0:02:50]} 10. d4 {[%clk 0:02:35]}  Qxb5 {[%clk 0:02:49]} 11. dxc5 {[%clk 0:02:35]}  Qxc5 {[%clk 0:02:48]} 12. O-O {[%clk 0:02:34]}  O-O {[%clk 0:02:45]} 13. Bg5 {[%clk 0:02:20]}  Ne4 {[%clk 0:02:43]} 14. Be3 {[%clk 0:02:20]}  Qe7 {[%clk 0:02:42]} 15. Qxd5 {[%clk 0:02:12]}  Nf6 {[%clk 0:02:41]} 16. Qc5 {[%clk 0:02:07]}  Qxc5 {[%clk 0:02:38]} 17. Bxc5 {[%clk 0:02:08]}  Rc8 {[%clk 0:02:39]} 18. Nd3 {[%clk 0:01:58]}  b6 {[%clk 0:02:34]} 19. Bd4 {[%clk 0:01:59]}  Rxc2 {[%clk 0:02:33]} 20. Bc3 {[%clk 0:01:59]}  Nc6 {[%clk 0:02:31]} 21. Bxf6 {[%clk 0:01:51]}  gxf6 {[%clk 0:02:30]} 22. Rac1 {[%clk 0:01:52]}  Rxc1 {[%clk 0:02:27]} 23. Rxc1 {[%clk 0:01:53]}  Rd8 {[%clk 0:02:25]} 24. Nf4 {[%clk 0:01:48]}  Nb4 {[%clk 0:02:22]} 25. a3 {[%clk 0:01:45]}  Nd3 {[%clk 0:02:21]} 26. Rd1 {[%clk 0:01:42]} 1-0


[Site "https://www.chess.com"]

[Event "Titled Tuesday Blitz February 07 Early 2023"]
[White "Dehtiarov, Roman"]
[Black "Podetti, Davide"]
[WhiteFideId "14186640"]
[BlackFideId "893617"]
[WhiteElo "2289"]
[BlackElo "2281"]
[Result "1-0"]
[Round "10"]
[TimeControl "180+2"]
[Date "2023.02.07"]
[WhiteClock "0:01:07"]
[BlackClock "0:00:49"]

1. e4 {[%clk 0:03:00]}  e5 {[%clk 0:02:45]} 2. Nf3 {[%clk 0:03:00]}  Nc6 {[%clk 0:02:45]} 3. Bb5 {[%clk 0:03:01]}  a6 {[%clk 0:02:45]} 4. Ba4 {[%clk 0:03:01]}  Nf6 {[%clk 0:02:45]} 5. d4 {[%clk 0:03:00]}  exd4 {[%clk 0:02:38]} 6. O-O {[%clk 0:03:00]}  Be7 {[%clk 0:02:30]} 7. e5 {[%clk 0:03:00]}  Ne4 {[%clk 0:02:28]} 8. Nxd4 {[%clk 0:03:00]}  Nc5 {[%clk 0:02:28]} 9. Nf5 {[%clk 0:03:01]}  O-O {[%clk 0:02:14]} 10. Qg4 {[%clk 0:03:00]}  g6 {[%clk 0:02:14]} 11. Bxc6 {[%clk 0:03:00]}  dxc6 {[%clk 0:02:11]} 12. Nxe7+ {[%clk 0:03:00]}  Qxe7 {[%clk 0:02:11]} 13. Qg3 {[%clk 0:03:01]}  Bf5 {[%clk 0:02:03]} 14. Nc3 {[%clk 0:03:00]}  f6 {[%clk 0:01:58]} 15. exf6 {[%clk 0:02:57]}  Qxf6 {[%clk 0:01:58]} 16. Qxc7 {[%clk 0:02:44]}  Bxc2 {[%clk 0:01:47]} 17. Be3 {[%clk 0:02:39]}  Rf7 {[%clk 0:01:38]} 18. Qg3 {[%clk 0:02:26]}  Ne4 {[%clk 0:01:34]} 19. Nxe4 {[%clk 0:02:25]}  Bxe4 {[%clk 0:01:35]} 20. Rfe1 {[%clk 0:02:22]}  Bd5 {[%clk 0:01:30]} 21. Rad1 {[%clk 0:02:19]}  Re8 {[%clk 0:01:23]} 22. Bd2 {[%clk 0:02:03]}  Rfe7 {[%clk 0:01:20]} 23. Rxe7 {[%clk 0:02:00]}  Qxe7 {[%clk 0:01:21]} 24. h4 {[%clk 0:01:49]}  Qe2 {[%clk 0:01:17]} 25. Re1 {[%clk 0:01:40]}  Qxd2 {[%clk 0:01:13]} 26. Rxe8+ {[%clk 0:01:39]}  Kf7 {[%clk 0:01:13]} 27. Qe5 {[%clk 0:01:27]}  Qc1+ {[%clk 0:00:49]} 28. Kh2 {[%clk 0:01:25]}  Qc5 {[%clk 0:00:49]} 29. Rh8 {[%clk 0:01:07]} 1-0


[Site "https://www.chess.com"]

[Event "Titled Tuesday Blitz February 07 Early 2023"]
[White "Oro, Faustino"]
[Black "Ilkhomi, Jaloliddin"]
[WhiteFideId "20000197"]
[BlackFideId "14700948"]
[WhiteElo "2269"]
[BlackElo "1997"]
[Result "0-1"]
[Round "10"]
[TimeControl "180+2"]
[Date "2023.02.07"]
[WhiteClock "0:00:01"]
[BlackClock "0:00:12"]

1. e4 {[%clk 0:03:00]}  e6 {[%clk 0:02:55]} 2. d4 {[%clk 0:03:00]}  d5 {[%clk 0:02:55]} 3. Nd2 {[%clk 0:02:59]}  Be7 {[%clk 0:02:50]} 4. Ngf3 {[%clk 0:02:54]}  Nf6 {[%clk 0:02:50]} 5. Bd3 {[%clk 0:02:50]}  c5 {[%clk 0:02:49]} 6. exd5 {[%clk 0:02:37]}  Nxd5 {[%clk 0:02:42]} 7. O-O {[%clk 0:02:29]}  cxd4 {[%clk 0:02:35]} 8. Nxd4 {[%clk 0:02:29]}  Nb4 {[%clk 0:02:28]} 9. Bb5+ {[%clk 0:02:29]}  Bd7 {[%clk 0:02:28]} 10. Bc4 {[%clk 0:02:09]}  N8c6 {[%clk 0:02:14]} 11. N4f3 {[%clk 0:02:02]}  Na5 {[%clk 0:02:10]} 12. Be2 {[%clk 0:01:58]}  Rc8 {[%clk 0:02:08]} 13. c3 {[%clk 0:01:58]}  Nd5 {[%clk 0:02:08]} 14. Ne5 {[%clk 0:01:57]}  Bd6 {[%clk 0:02:06]} 15. Nxd7 {[%clk 0:01:55]}  Qxd7 {[%clk 0:02:07]} 16. Nf3 {[%clk 0:01:51]}  Nc6 {[%clk 0:02:04]} 17. Qa4 {[%clk 0:01:47]}  Ne5 {[%clk 0:01:57]} 18. Qxd7+ {[%clk 0:01:45]}  Kxd7 {[%clk 0:01:58]} 19. Nd4 {[%clk 0:01:45]}  a6 {[%clk 0:01:55]} 20. Rd1 {[%clk 0:01:44]}  Ke7 {[%clk 0:01:54]} 21. Bg5+ {[%clk 0:01:38]}  f6 {[%clk 0:01:52]} 22. Bc1 {[%clk 0:01:37]}  Rhd8 {[%clk 0:01:46]} 23. g3 {[%clk 0:01:28]}  Nc6 {[%clk 0:01:39]} 24. Nxc6+ {[%clk 0:01:19]}  Rxc6 {[%clk 0:01:40]} 25. Bf3 {[%clk 0:01:18]}  Bc5 {[%clk 0:01:34]} 26. Bd2 {[%clk 0:01:13]}  Rcd6 {[%clk 0:01:32]} 27. Re1 {[%clk 0:01:13]}  Kf7 {[%clk 0:01:15]} 28. a3 {[%clk 0:00:45]}  Ba7 {[%clk 0:01:07]} 29. c4 {[%clk 0:00:42]}  Ne7 {[%clk 0:00:54]} 30. Bb4 {[%clk 0:00:42]}  R6d7 {[%clk 0:00:53]} 31. Kf1 {[%clk 0:00:38]}  Nc6 {[%clk 0:00:52]} 32. Bc3 {[%clk 0:00:33]}  Bd4 {[%clk 0:00:53]} 33. Rac1 {[%clk 0:00:25]}  Bxc3 {[%clk 0:00:53]} 34. Rxc3 {[%clk 0:00:26]}  Rd2 {[%clk 0:00:53]} 35. b4 {[%clk 0:00:26]}  Ra2 {[%clk 0:00:50]} 36. b5 {[%clk 0:00:25]}  axb5 {[%clk 0:00:19]} 37. cxb5 {[%clk 0:00:25]}  Nd4 {[%clk 0:00:20]} 38. Bxb7 {[%clk 0:00:23]}  Nxb5 {[%clk 0:00:18]} 39. Rb3 {[%clk 0:00:23]}  Nd4 {[%clk 0:00:15]} 40. Rd3 {[%clk 0:00:21]}  e5 {[%clk 0:00:15]} 41. Rc1 {[%clk 0:00:20]}  Kg6 {[%clk 0:00:13]} 42. Be4+ {[%clk 0:00:16]}  Kh6 {[%clk 0:00:13]} 43. Re3 {[%clk 0:00:08]}  Rb8 {[%clk 0:00:13]} 44. Rcc3 {[%clk 0:00:09]}  Rbb2 {[%clk 0:00:12]} 45. Kg1 {[%clk 0:00:01]}  Rxf2 {[%clk 0:00:12]} 0-1


[Site "https://www.chess.com"]

[Event "Titled Tuesday Blitz February 07 Early 2023"]
[White "Shimanov, Aleksandr"]
[Black "Gascon Del Nogal, Jose Rafael"]
[WhiteFideId "4198603"]
[BlackFideId "3902463"]
[WhiteElo "2581"]
[BlackElo "2459"]
[Result "1-0"]
[Round "10"]
[TimeControl "180+2"]
[Date "2023.02.07"]
[WhiteClock "0:00:05"]
[BlackClock "0:00:03"]

1. d4 {[%clk 0:02:44]}  Nf6 {[%clk 0:02:59]} 2. Bg5 {[%clk 0:02:41]}  d5 {[%clk 0:02:58]} 3. Nd2 {[%clk 0:02:39]}  Bf5 {[%clk 0:02:56]} 4. e3 {[%clk 0:02:38]}  c6 {[%clk 0:02:55]} 5. Bxf6 {[%clk 0:02:38]}  exf6 {[%clk 0:02:55]} 6. Bd3 {[%clk 0:02:38]}  Be6 {[%clk 0:02:55]} 7. Ne2 {[%clk 0:02:38]}  Bd6 {[%clk 0:02:53]} 8. O-O {[%clk 0:02:37]}  O-O {[%clk 0:02:53]} 9. c4 {[%clk 0:02:34]}  dxc4 {[%clk 0:02:41]} 10. Bxc4 {[%clk 0:02:34]}  Bg4 {[%clk 0:02:32]} 11. Qb3 {[%clk 0:02:31]}  Qb6 {[%clk 0:02:30]} 12. Nc3 {[%clk 0:02:28]}  Nd7 {[%clk 0:02:28]} 13. h3 {[%clk 0:02:18]}  Bh5 {[%clk 0:02:27]} 14. Rac1 {[%clk 0:02:14]}  Rfe8 {[%clk 0:02:14]} 15. Rfe1 {[%clk 0:02:13]}  f5 {[%clk 0:02:08]} 16. Qc2 {[%clk 0:02:10]}  Bg6 {[%clk 0:02:05]} 17. Bd3 {[%clk 0:02:03]}  f4 {[%clk 0:01:55]} 18. Nc4 {[%clk 0:02:02]}  Qc7 {[%clk 0:01:55]} 19. e4 {[%clk 0:01:58]}  f3 {[%clk 0:01:45]} 20. e5 {[%clk 0:01:54]}  Bb4 {[%clk 0:01:39]} 21. gxf3 {[%clk 0:01:49]}  Nf8 {[%clk 0:01:35]} 22. a3 {[%clk 0:01:47]}  Be7 {[%clk 0:01:33]} 23. f4 {[%clk 0:01:44]}  Ne6 {[%clk 0:01:23]} 24. Ne2 {[%clk 0:01:40]}  Bxd3 {[%clk 0:01:13]} 25. Qxd3 {[%clk 0:01:41]}  Rad8 {[%clk 0:01:08]} 26. Rcd1 {[%clk 0:01:35]}  g6 {[%clk 0:00:21]} 27. f5 {[%clk 0:01:31]}  gxf5 {[%clk 0:00:21]} 28. Qxf5 {[%clk 0:01:32]}  Kh8 {[%clk 0:00:22]} 29. Qxf7 {[%clk 0:01:30]}  Rg8+ {[%clk 0:00:20]} 30. Kh1 {[%clk 0:01:30]}  Qd7 {[%clk 0:00:18]} 31. Nd6 {[%clk 0:00:10]}  Ng5 {[%clk 0:00:15]} 32. Qf5 {[%clk 0:00:06]}  Bxd6 {[%clk 0:00:09]} 33. Qxd7 {[%clk 0:00:06]}  Rxd7 {[%clk 0:00:09]} 34. exd6 {[%clk 0:00:07]}  Nxh3 {[%clk 0:00:10]} 35. Rf1 {[%clk 0:00:04]}  Rxd6 {[%clk 0:00:10]} 36. Ng3 {[%clk 0:00:03]}  Rh6 {[%clk 0:00:10]} 37. Kg2 {[%clk 0:00:03]}  Nf4+ {[%clk 0:00:07]} 38. Kf3 {[%clk 0:00:03]}  Rf6 {[%clk 0:00:05]} 39. Ne4 {[%clk 0:00:03]}  Rf7 {[%clk 0:00:05]} 40. Nd6 {[%clk 0:00:03]}  Rf6 {[%clk 0:00:05]} 41. Ne4 {[%clk 0:00:03]}  Rff8 {[%clk 0:00:05]} 42. Ke3 {[%clk 0:00:04]}  Nd5+ {[%clk 0:00:05]} 43. Ke2 {[%clk 0:00:04]}  Re8 {[%clk 0:00:05]} 44. f3 {[%clk 0:00:03]}  Rg2+ {[%clk 0:00:05]} 45. Rf2 {[%clk 0:00:03]}  Nf4+ {[%clk 0:00:05]} 46. Ke3 {[%clk 0:00:04]}  Nd5+ {[%clk 0:00:04]} 47. Ke2 {[%clk 0:00:04]}  Nf4+ {[%clk 0:00:03]} 48. Kf1 {[%clk 0:00:04]}  Nd5 {[%clk 0:00:04]} 49. Kxg2 {[%clk 0:00:03]}  Ne3+ {[%clk 0:00:04]} 50. Kg3 {[%clk 0:00:03]}  Nxd1 {[%clk 0:00:03]} 51. Rd2 {[%clk 0:00:03]}  Ne3 {[%clk 0:00:03]} 52. Kf2 {[%clk 0:00:03]}  Nd5 {[%clk 0:00:03]} 53. Nd6 {[%clk 0:00:03]}  Re7 {[%clk 0:00:03]} 54. Nf5 {[%clk 0:00:03]}  Rf7 {[%clk 0:00:03]} 55. Nd6 {[%clk 0:00:04]}  Re7 {[%clk 0:00:03]} 56. Nc4 {[%clk 0:00:04]}  Kg7 {[%clk 0:00:03]} 57. Ne5 {[%clk 0:00:04]}  Kf6 {[%clk 0:00:03]} 58. Kg3 {[%clk 0:00:04]}  Rg7+ {[%clk 0:00:03]} 59. Kf2 {[%clk 0:00:05]}  Nf4 {[%clk 0:00:03]} 60. Ng4+ {[%clk 0:00:05]}  Kf5 {[%clk 0:00:03]} 61. Ne3+ {[%clk 0:00:05]}  Ke6 {[%clk 0:00:04]} 62. Rd1 {[%clk 0:00:05]}  h5 {[%clk 0:00:04]} 63. Rh1 {[%clk 0:00:05]}  Rh7 {[%clk 0:00:02]} 64. Ke1 {[%clk 0:00:04]}  h4 {[%clk 0:00:03]} 65. Kd2 {[%clk 0:00:04]}  h3 {[%clk 0:00:03]} 66. Ng4 {[%clk 0:00:04]}  Kf5 {[%clk 0:00:02]} 67. Ke3 {[%clk 0:00:05]}  Ne6 {[%clk 0:00:02]} 68. Nf2 {[%clk 0:00:05]}  Nf4 {[%clk 0:00:03]} 69. Ne4 {[%clk 0:00:05]}  Rg7 {[%clk 0:00:03]} 70. Nd6+ {[%clk 0:00:04]}  Kg5 {[%clk 0:00:03]} 71. Rg1+ {[%clk 0:00:04]}  Ng2+ {[%clk 0:00:03]} 72. Kf2 {[%clk 0:00:04]}  Kf4 {[%clk 0:00:04]} 73. Ne4 {[%clk 0:00:04]}  h2 {[%clk 0:00:03]} 74. Rh1 {[%clk 0:00:04]}  Ne3 {[%clk 0:00:03]} 75. Rxh2 {[%clk 0:00:04]}  Nd1+ {[%clk 0:00:03]} 76. Ke2 {[%clk 0:00:04]}  Ne3 {[%clk 0:00:04]} 77. Rh4+ {[%clk 0:00:04]}  Kf5 {[%clk 0:00:03]} 78. Kxe3 {[%clk 0:00:05]} 1-0


[Site "https://www.chess.com"]